Cogmind - Beta 16.1 @@@ ROGUE MODE // 2026.03.15 @ 05:17:49 Player: +Jones Result: Destroyed by Q041-x with Gamma Bomb Array Performance ------------- Evolutions (8) 4000 Regions Visited (26) 5200 Robots Destroyed (552) 2760 Value Destroyed (24742) 24742 Prototype IDs (71) 1420 Alien Tech Used (3) 600 Bonus (15779) 15779 TOTAL SCORE: 54501 Bonus ------- Triggered High Security 1000 High Alert Combat Kills 8997 Follower Combat Kills 2270 Awakened Behemoth Slayer 1000 Finished Modified EM Gauss 1000 Network Hubs Disabled 800 Met Data Miner 300 Met Zhirov 300 Built Enhanced Grunts 300 A7 Reached Mainframe 300 Scanned by Researcher 500 Friendly Fire -988 Cogmind --------- Core Integrity 0/1450 Matter 27/300 Energy 100/100 System Corruption 5% Temperature Cool (0) Movement Flying (29) Location -2/Research Parts ------- > --- POWER (3) -------- (None) > --- PROPULSION (6) --- Cooled Impulse Thruster Cooled Impulse Thruster Cooled Impulse Thruster > --- UTILITY (11) ----- (None) > --- WEAPON (4) ------- (None) > --- INVENTORY (5) ---- Experimental Energy Well (600) Improved Plasma Cutter Gravity Flail Peak State ------------ > --- POWER ------------ Quantum Reactor Quantum Reactor > --- PROPULSION ------- Improved Heavy Siege Treads Improved Heavy Siege Treads Improved Heavy Siege Treads > --- UTILITY ---------- Advanced Heat Sink Huge Storage Unit Spectral Analyzer Improved Transmission Jammer Centrium Light Armor Plating SHELL Armor Improved Hacking Suite Advanced Corruption Screen > --- WEAPON ----------- Modified EM Gauss Rifle High-powered Disruptor Cannon Gravity Flail > --- INVENTORY -------- Quantum Reactor Improved Heavy Siege Treads Improved Heavy Siege Treads Improved Heavy Siege Treads Experimental Energy Well Matter Compressor Experimental Matter Compressor Heavy Regenerative Plating Advanced Point Defense System Transdimensional Reconstructor Nova Cannon Nova Cannon Railgun Linear Accelerator Linear Accelerator Long-range Missile Launcher Fusion Bomb Launcher Tactical Quantum Warhead Improved Plasma Cutter Gravity Flail CR-A16's Behemoth Slayer [Rating: 202] Favorites ----------- Power Meta Core Engine Reinforced Deuterium Engine Power Core Meta Core Reactor Quantum Reactor Propulsion Medium Treads Treads Medium Treads Wheel Compact Wheel Flight Unit Cooled Impulse Thruster Utility Huge Storage Unit Device Advanced Sensor Array Storage Huge Storage Unit Processor Advanced Signal Interpreter Hackware Advanced Hacking Suite Protection Hardened Medium Armor Plating Weapon Gauss Rifle Energy Gun Particle Gun Energy Cannon Phase Cannon Ballistic Gun Gauss Rifle Ballistic Cannon Advanced Assault Cannon Launcher Long-range Missile Launcher Special Weapon Mining Laser Impact Weapon Gravity Flail Slashing Weapon Axe Piercing Weapon CR-A16's Behemoth Slayer Build | -11 -10 -10 -8 -7 -7 -7 -7 -6 -6 -6 -6 -6 -5 -5 -5 -5 -5 -4 -4 -4 -4 -4 -4 -3 -3 -2 ------- Run | Yrd Mat Sub Mat Fac Low Low Zio Pro Fac Low Low Dat Pro Fac Upp Upp Zhi Pro Fac Ext Cet Arc Hub Res Tes Res Slots Evolved 16 | . . . 4 2 . . . . 2 . . . . 2 . . . . 2 . . . . 2 . 2 Power 2 | . . . . . . . . . 1 . . . . . . . . . . . . . . . . 1 Propulsion 3 | . . . 1 1 . . . . 1 . . . . . . . . . . . . . . . . . Utility 9 | . . . 1 1 . . . . . . . . . 2 . . . . 2 . . . . 2 . 1 Weapon 2 | . . . 2 . . . . . . . . . . . . . . . . . . . . . . . Parts Attached 308 | 8 8 15 25 15 7 9 2 6 23 14 1 . 6 16 . 5 1 1 14 12 4 1 9 48 33 25 Power 31 | 1 . 3 2 1 1 . 1 1 . 2 . . 2 . . . . . . 2 . . 2 6 5 2 Engine 9 | 1 . 3 2 1 . . 1 . . 1 . . . . . . . . . . . . . . . . Core 8 | . . . . . 1 . . 1 . . . . 2 . . . . . . 2 . . 1 . 1 . Reactor 14 | . . . . . . . . . . 1 . . . . . . . . . . . . 1 6 4 2 Propulsion 76 | 2 . 2 9 6 . 1 . 3 6 1 . . . 6 . 1 . . 1 3 1 . 2 10 6 16 Treads 60 | 2 . 2 8 6 . 1 . 3 6 1 . . . 6 . 1 . . 1 3 1 . 2 2 6 9 Leg . | . . . . . . . . . . . . . . . . . . . . . . . . . . . Wheel 9 | . . . 1 . . . . . . . . . . . . . . . . . . . . 8 . . Hover . | . . . . . . . . . . . . . . . . . . . . . . . . . . . Flight 7 | . . . . . . . . . . . . . . . . . . . . . . . . . . 7 Utility 99 | 2 2 3 4 6 3 2 . . 8 9 . . 3 8 . . 1 . 7 3 2 . 2 18 11 5 Device 42 | 1 . . 2 3 3 1 . . 3 5 . . 3 3 . . . . 2 1 . . 1 6 4 4 Storage 10 | 1 1 1 . . . . . . 1 1 . . . 1 . . . . . 1 . . . 1 2 . Processor 11 | . . . . 1 . . . . . 3 . . . 1 . . . . 1 1 . . . 4 . . Hackware 5 | . . . . . . . . . 1 . . . . 2 . . . . . . . . 1 1 . . Protection 31 | . 1 2 2 2 . 1 . . 3 . . . . 1 . . 1 . 4 . 2 . . 6 5 1 Artifact . | . . . . . . . . . . . . . . . . . . . . . . . . . . . Weapon 102 | 3 6 7 10 2 3 6 1 2 9 2 1 . 1 2 . 4 . 1 6 4 1 1 3 14 11 2 Energy Gun 6 | 1 1 . . . . . . . . . . . . . . 1 . . . . . . . 1 2 . Energy Cannon 10 | . . . . . . . . . 2 . . . . . . 1 . . 2 . . 1 . 1 2 1 Ballistic Gun 40 | 2 3 5 8 . 2 3 . . 3 . . . 1 . . 1 . 1 4 4 . . 2 . . 1 Ballistic Cannon 13 | . . 2 . . 1 1 1 . 2 . . . . 2 . 1 . . . . . . . 2 1 . Launcher 15 | . . . 1 1 . 2 . 1 . 1 1 . . . . . . . . . . . 1 5 2 . Special Weapon 2 | . 1 . . . . . . . . . . . . . . . . . . . 1 . . . . . Impact Weapon 7 | . . . . 1 . . . . 1 . . . . . . . . . . . . . . 3 2 . Slashing Weapon 7 | . 1 . 1 . . . . . 1 . . . . . . . . . . . . . . 2 2 . Piercing Weapon 2 | . . . . . . . . 1 . 1 . . . . . . . . . . . . . . . . Special Melee Weapon . | . . . . . . . . . . . . . . . . . . . . . . . . . . . Unidentified Prototypes 27 | . . . . . . . . . 2 . . . . . . 1 2 . . 1 1 1 2 3 10 4 Corrupted Parts 1 | . . . . . . . . . . . . . . . . . . . . . . . 1 . . . System Corruption 4 | . . . . . . . . . . . . . . . . . . . . . . . 4 . . . Parts Lost 106 | . . 7 8 1 4 1 . . 2 . . . . . . . . . 1 1 . . 11 23 17 30 Power 13 | . . 3 . . . . . . . . . . . . . . . . . . . . 1 2 4 3 Propulsion 33 | . . 2 3 1 . . . . . . . . . . . . . . . . . . 3 7 6 11 Utility 32 | . . 1 2 . 1 . . . 1 . . . . . . . . . . 1 . . 4 9 5 8 Weapon 28 | . . 1 3 . 3 1 . . 1 . . . . . . . . . 1 . . . 3 5 2 8 Highest Loss Streak 11 | . . 4 5 1 2 1 . . 1 . . . . . . . . . 1 1 . . 11 6 5 9 To Critical Strikes . | . . . . . . . . . . . . . . . . . . . . . . . . . . . Average Backups 19 | . 8 14 18 18 18 18 18 18 22 22 22 23 23 23 23 22 23 24 23 22 21 21 21 20 22 12 Power . | . . . . . 1 1 . . . . 1 1 . . . . . . . . . 1 . . 1 . Propulsion 3 | . 1 5 5 4 5 5 5 4 3 4 5 5 5 4 4 3 3 3 2 2 3 2 1 . 1 1 Utility 8 | . 2 4 6 7 6 6 6 7 10 10 11 11 11 12 12 12 12 13 12 11 9 10 10 8 6 3 Weapon 6 | . 4 5 4 4 4 5 5 5 7 5 5 6 6 6 7 7 7 7 6 6 6 6 6 8 11 5 Tool/Special . | . . . . . . . . . . . . . . . . . . . . . . . . . . . Unused Backups 38 | . 1 1 8 5 . . 1 . 3 . . . . 1 . . . . 2 3 . 1 . 4 6 2 Power 2 | . . . . . . . . . . . . . . . . . . . . . . . . 1 1 . Propulsion 5 | . . . 2 1 . . . . . . . . . . . . . . . 1 . 1 . . . . Utility 17 | . . 1 3 1 . . 1 . 3 . . . . 1 . . . . 2 1 . . . 1 2 1 Weapon 14 | . 1 . 3 3 . . . . . . . . . . . . . . . 1 . . . 2 3 1 Tool/Special . | . . . . . . . . . . . . . . . . . . . . . . . . . . . Average Slot Usage (%) 94 | . 100 98 95 99 98 98 100 98 91 99 99 100 100 99 100 99 99 100 95 93 87 85 84 85 76 52 Engine 4 | . 14 13 9 7 1 . 4 6 5 4 5 5 . . . . . . . . . . . . . . Core 4 | . . . . . 5 7 2 . 5 5 5 5 9 10 10 10 10 10 9 9 10 10 9 . . . Treads 26 | . 28 27 26 30 30 30 30 30 32 34 34 35 35 31 31 34 35 35 28 26 17 15 14 3 12 9 Device 8 | . 13 5 5 7 8 7 7 6 5 10 11 11 11 11 10 10 9 10 13 12 12 14 13 7 8 5 Storage 7 | . 14 14 9 7 7 7 7 6 5 4 5 5 5 5 5 5 5 5 4 4 5 5 5 5 4 10 Processor 6 | . . . . 6 7 7 7 6 . 4 5 5 5 8 5 5 5 5 8 13 15 15 15 15 12 5 Hackware 1 | . . . . . . . . . 4 . . . . 3 5 5 5 5 4 3 . . 4 3 3 . Protection 5 | . . 8 8 6 6 6 7 6 4 . . . . 1 5 5 5 5 5 2 7 5 1 10 9 4 Energy Cannon 1 | . . . . . . . . . 1 2 2 . 2 4 5 3 . . . . . . 2 . 5 4 Ballistic Gun 14 | . 11 17 32 25 23 23 16 14 9 7 6 11 9 4 5 4 10 11 15 18 17 19 15 2 . . Ballistic Cannon 6 | . . 8 1 . 4 4 13 10 10 15 17 17 13 14 15 14 12 10 4 . . . . 1 1 2 Peak Build Rating 202 | 7 11 19 39 50 52 52 52 64 97 102 99 98 102 115 109 117 118 118 145 140 132 133 132 157 202 198 Average Rating 80 | 5 8 14 32 44 48 49 51 52 90 96 98 98 100 110 109 113 115 117 134 131 128 129 127 130 178 132 On Entrance 85 | . 7 11 18 38 49 47 52 51 64 96 99 98 98 102 109 109 113 118 116 132 127 129 129 78 157 170 Avg Prop Armor Cover (%) 6 | . . . . . . . . . 8 . . . . . . . . . . . . . 8 8 3 7 Naked Turns 23 | . . . . . . . . . . . . . . . . . . . . . . . . . . 23 Heaviest Build 222 | 14 32 53 81 82 83 79 87 87 156 152 135 131 152 162 148 154 144 141 168 180 186 176 175 167 185 222 Greatest Support 225 | 40 40 40 66 99 96 96 88 118 176 176 176 176 176 176 162 192 192 192 210 210 210 210 210 150 225 225 Greatest Overweight (x) 8 | . . 1 1 1 . . . 1 1 . . . . . . . . . . 1 . . 1 7 8 4 Average Overweight (x) . | . . . . . . . . . . . . . . . . . . . . . . . . 2 . . Largest Inventory Capacity 25 | 8 15 20 20 20 20 20 20 20 25 25 25 25 25 25 25 25 25 25 25 25 25 25 25 25 25 25 Average Capacity 21 | 7 12 15 20 20 20 20 20 20 24 24 25 25 25 25 25 25 25 25 25 25 25 25 25 25 25 21 Most Carried 25 | 2 15 17 20 20 20 20 20 20 25 25 25 25 25 25 24 24 25 25 25 25 25 25 25 25 25 22 Average Carried 20 | . 8 14 18 19 19 19 19 19 24 24 24 25 24 24 24 23 24 25 24 24 24 24 24 23 24 14 Final Capacity 25 | 8 15 20 20 20 20 20 20 20 25 25 25 25 25 25 25 25 25 25 25 25 25 25 25 25 25 5 Final Carried 25 | 2 15 17 20 20 20 20 20 20 25 25 25 25 25 24 24 24 25 25 25 25 25 25 17 24 22 3 Class Distribution -------------------- 26% | Scavenger-Tank 20% | Tank 19% | Skirmisher 14% | Mutant 6% | Derelict-Tank 3% | Scavenger-Skirmisher Dominant Class ---------------- Mutant | -10/Materials Mutant | -10/Subcaves Tank | -8/Materials Tank | -7/Factory Scavenger-Tank | -7/Lower Caves Scavenger-Tank | -7/Lower Caves Scavenger-Tank | -7/Zion Derelict-Tank | -6/Proximity Caves Tank | -6/Factory Skirmisher | -6/Lower Caves Skirmisher | -6/Lower Caves Skirmisher | -6/Data Miner Skirmisher | -5/Proximity Caves Skirmisher | -5/Factory Skirmisher | -5/Upper Caves Skirmisher | -5/Upper Caves Skirmisher | -5/Zhirov Skirmisher | -4/Proximity Caves Scavenger-Tank | -4/Factory Scavenger-Tank | -4/Extension Scavenger-Tank | -4/Cetus Scavenger-Tank | -4/Archives Scavenger-Tank | -4/Hub_04(d) Scavenger-Mutant | -3/Research Tank | -3/Testing Tank | -2/Research Resources | -11 -10 -10 -8 -7 -7 -7 -7 -6 -6 -6 -6 -6 -5 -5 -5 -5 -5 -4 -4 -4 -4 -4 -4 -3 -3 -2 ----------- Run | Yrd Mat Sub Mat Fac Low Low Zio Pro Fac Low Low Dat Pro Fac Upp Upp Zhi Pro Fac Ext Cet Arc Hub Res Tes Res Matter Collected 22113 | 291 265 1609 1760 1381 642 595 20 712 1348 712 364 . 314 1007 103 450 368 25 1241 1448 162 92 360 3134 1966 1744 Remotely 3300 | . . . . 317 . . . . 220 . . . . 623 . . . . 509 . . . . 1631 . . Salvage Created 22183 | 174 528 586 1746 1237 538 709 . 420 1490 366 491 . 172 851 83 265 368 . 1968 2007 298 70 568 2844 2653 1751 Parts 957 | 11 44 40 97 78 11 32 . 13 42 16 14 . 6 27 7 5 5 . 128 83 14 10 36 97 88 53 Haulers Intercepted 8 | . 2 . . 1 . . . . 1 . . . . . . . . . 1 . . . . 1 1 1 Recyclers Shooed 12 | . . . 1 . . . . . 1 . . . . 2 . . . . 5 . . . . 3 . . Parts Field Recycled . | . . . . . . . . . . . . . . . . . . . . . . . . . . . Retrieved Matter . | . . . . . . . . . . . . . . . . . . . . . . . . . . . Parts Self-Destructed 90 | . . 12 . . 10 31 1 13 . 2 13 . 2 . 4 . 2 . . . . . . . . . Prevented 2 | . . . . . . . . . . . . . . . . . . 2 . . . . . . . . Parts Restored . | . . . . . . . . . . . . . . . . . . . . . . . . . . . Kills | -11 -10 -10 -8 -7 -7 -7 -7 -6 -6 -6 -6 -6 -5 -5 -5 -5 -5 -4 -4 -4 -4 -4 -4 -3 -3 -2 ------- Run | Yrd Mat Sub Mat Fac Low Low Zio Pro Fac Low Low Dat Pro Fac Upp Upp Zhi Pro Fac Ext Cet Arc Hub Res Tes Res Combat Hostiles Destroyed 392 | . 12 20 28 23 5 17 . 11 20 4 15 . 8 14 4 8 . . 24 25 3 . 6 65 53 27 Melee 16 | . . . . . . . . . 2 . 1 . . . . . . . . . . . . 6 2 5 Guns 136 | . 12 15 24 19 4 9 . 2 5 1 . . 1 1 . . . . 14 24 3 . . 1 1 . Cannons 56 | . . 5 2 . 1 1 . 5 6 1 3 . . 7 . 2 . . 3 . . . 2 8 9 1 AOE 160 | . . . 2 4 . 7 . 4 5 2 11 . 7 5 4 6 . . 6 1 . . 1 47 32 16 Classes Destroyed 27 | 2 6 2 3 1 2 2 . 1 2 1 1 . . 1 . . . . . . . 1 . . 2 . Worker 37 | . 5 . 4 3 . . . . 2 . . . . 3 . . . . 9 . . . 3 3 2 3 Builder 30 | . 1 . 1 3 . . . . . . . . . 1 . . . . 8 2 . . 1 6 3 4 Tunneler 10 | 5 . . . 2 . . . . . . . . . 1 . . . . . . . . 1 . . 1 Hauler 8 | . 2 . . 1 . . . . 1 . . . . . . . . . 1 . . . . 1 1 1 Recycler 27 | 1 . . 5 2 . . . . 4 . . . . 3 . . . . 3 1 . . . 5 . 3 Minesweeper 3 | . . . . . . 1 . 1 . . 1 . . . . . . . . . . . . . . . Mechanic 3 | . . . . . . . . . . . . . . 1 . . . . . 1 . . . 1 . . Operator 5 | . . . . . . . . . . . . . . . . . . . . . . 2 2 . 1 . Drone 2 | . . . . . . . . 1 . . . . 1 . . . . . . . . . . . . . Watcher 29 | . 3 . 5 1 . . . . 2 . . . . 2 . . . . 5 1 . . 2 3 2 3 Swarmer 76 | . 9 5 6 11 1 5 . 2 . . 1 . 2 4 4 . . . 9 4 . . . 8 5 . Saboteur 4 | . . . . . . . . . . . 1 . . . . . . . . . . . . 2 1 . Grunt 148 | . 3 1 10 2 1 9 . 6 9 2 8 . 2 4 . 6 . . . 11 . . 1 29 26 18 Brawler 12 | . . . . . . . . . 1 . 1 . . 1 . . . . . . . . . 3 6 . Duelist 8 | . . . . . . 1 . 1 . . 3 . . . . 1 . . . . . . . . 1 1 Protector 5 | . . . . . . . . . . . . . . . . . . . . . . . . . 2 3 Researcher 2 | . . . . . . . . . . . . . . . . . . . . . . . . . 2 . Sentry 37 | . . . 10 3 1 2 . 1 . 1 1 . . 2 . . . . . 8 . . . 3 4 1 Specialist 6 | . . . . . . . . . 2 . . . . . . . . . 2 1 . . 1 . . . Hunter 27 | . . . 1 1 1 . . . 2 1 . . 2 . . . . . 2 1 . . 2 10 2 2 Programmer 43 | . . . . 6 . . . . 5 . . . 1 3 . . . . 10 . . . 1 10 6 1 Heavy 1 | . . . 1 . . . . . . . . . . . . . . . . . . . . . . . Behemoth 5 | . . . . . 1 . . . 1 . . . . . . . . . 1 . . . 1 . . 1 Cetus Guard 3 | . . . . . . . . . . . . . . . . . . . . . 3 . . . . . Subdweller 14 | . . 14 . . . . . . . . . . . . . . . . . . . . . . . . Scientist 1 | . . 1 . . . . . . . . . . . . . . . . . . . . . . . . Decomposer 7 | . . . . . . . . . . 2 3 . . . 2 . . . . . . . . . . . Packrat 1 | . . . . . . . . . . . . . . . . 1 . . . . . . . . . . Samaritan 8 | . . . . . 3 . . 2 . . . . . . . 3 . . . . . . . . . . Thug 2 | . . . . . . . . . . . . . . . . . . . . 1 1 . . . . . Butcher 1 | . . . . . . . . . . . . . . . . . . . . 1 . . . . . . Guerrilla 1 | . . . . . . . . . . 1 . . . . . . . . . . . . . . . . Mutant 2 | . . . . . . . . . . 1 . . . . . 1 . . . . . . . . . . Commander 1 | . . . . . . . . . . 1 . . . . . . . . . . . . . . . . Best Kill Streak 30 | 5 4 5 4 6 3 5 . 2 4 3 7 . 4 7 4 4 . . 10 4 3 1 6 30 13 23 Combat Bots Only 18 | . 3 5 4 5 3 5 . 2 3 3 7 . 4 4 4 4 . . 5 4 3 . 3 18 13 10 Max Kills in Single Turn 5 | 1 2 2 2 3 1 4 . 2 2 2 3 . 2 5 2 3 . . 4 3 2 1 4 4 5 4 Gunslinging 1 | . 1 1 1 1 . . . . . . . . . . . . . . . . . . . . . . Exploded 5 | . . . 2 3 . 4 . 2 1 2 3 . 2 2 2 3 . . 4 1 . . 1 3 5 4 Melee 1 | . . . . . . . . . 1 . 1 . . . . . . . . . . . . 1 1 1 Uniques/NPCs Destroyed . | . . . . . . . . . . . . . . . . . . . . . . . . . . . Combat | -11 -10 -10 -8 -7 -7 -7 -7 -6 -6 -6 -6 -6 -5 -5 -5 -5 -5 -4 -4 -4 -4 -4 -4 -3 -3 -2 -------- Run | Yrd Mat Sub Mat Fac Low Low Zio Pro Fac Low Low Dat Pro Fac Upp Upp Zhi Pro Fac Ext Cet Arc Hub Res Tes Res Hostile Shots Fired 2862 | . 39 80 139 204 70 31 . 44 158 10 18 . 19 28 2 18 . 2 123 70 4 . 305 433 492 573 Missed 847 | . 7 21 30 67 21 11 . 18 40 3 7 . 10 7 2 8 . 1 39 21 1 . 81 156 135 161 Hits 2015 | . 32 59 109 137 49 20 . 26 118 7 11 . 9 21 . 10 . 1 84 49 3 . 224 277 357 412 Melee 20 | . . . . . . . . 1 . . 1 . . 3 . . . . . . . . . . 5 10 Projectile 1995 | . 32 59 109 137 49 20 . 25 118 7 10 . 9 18 . 10 . 1 84 49 3 . 224 277 352 402 AOE 21 | . . . . . . . . . . . . . . . . . . . . 1 . . . . . 20 Critical Strikes 91 | . 2 1 3 2 1 1 . . 5 . . . 1 3 . . . . 4 3 . . 8 16 25 16 Actively Blocked 1 | . . . . . . . . . . . . . . . . . . . . . . . . . 1 . Part Disruptions 4 | . . . . 1 . . . . 2 . . . . . . . . . . . . . 1 . . . Damage Taken 38830 | . 330 997 1687 1762 814 348 . 390 2047 119 229 . 146 319 . 188 . 15 1148 710 40 . 4153 5988 7898 9502 Core 3642 | . 46 72 172 131 18 52 . 80 108 14 23 . . 36 . . . . 104 17 . . 676 400 328 1365 Absorbed by Shields 2887 | . . . . . . . . . . . . . 61 151 . . . . 165 379 38 . 394 575 290 834 Reduced by Siege Mode 459 | . . . . . . . . . . . . . . . . . . . 16 22 . . . 8 151 262 Redirected to Shielding 148 | . . . . . . . . . . . . . . . . . . . . . . . . . 148 . Regen/Repaired (Parts) 2736 | . 345 . 106 343 . . . . . . . . . 57 . . . . . . . . . . 352 1533 Core Remaining (%) 66 | 100 . 52 68 . . . . 59 . . . . 82 . . . . 96 . . . . 30 . 44 . Volleys Fired 1347 | 9 63 174 80 58 25 34 . 29 69 22 34 . 19 90 11 35 . . 59 71 7 3 37 99 242 77 Largest 5 | 2 2 2 4 4 4 4 . 4 5 5 5 . 5 5 1 5 . . 5 4 4 4 4 3 3 2 Hottest 265 | 70 115 100 117 112 124 124 . 136 186 171 186 . 186 237 85 256 . . 265 132 132 132 191 141 221 113 Shots Fired 2808 | 18 120 290 301 205 95 99 . 92 174 44 50 . 42 147 11 54 . . 204 252 28 12 70 135 280 85 Gun 1697 | 18 117 85 281 203 84 81 . 42 70 9 6 . 8 15 . 2 . . 148 246 28 12 43 10 158 31 Cannon 827 | . . 152 19 . 11 15 . 44 98 31 31 . 21 129 8 39 . . 54 2 . . 25 40 92 16 Launcher 228 | . . . 1 2 . 3 . 6 6 4 13 . 13 3 3 13 . . 2 4 . . 2 85 30 38 Special 56 | . 3 53 . . . . . . . . . . . . . . . . . . . . . . . . Kinetic 1995 | 11 43 237 300 203 95 96 . 86 138 38 20 . 29 62 . 19 . . 190 246 28 12 43 43 35 21 Thermal 356 | 7 77 53 . . . . . . 30 2 17 . . 82 8 22 . . 12 2 . . 25 7 9 3 Explosive 228 | . . . 1 2 . 3 . 6 6 4 13 . 13 3 3 13 . . 2 4 . . 2 85 30 38 Electromagnetic 229 | . . . . . . . . . . . . . . . . . . . . . . . . . 206 23 Robot Hit Streak 31 | 4 9 16 15 11 17 16 . 10 10 6 14 . 7 8 6 9 . . 12 31 9 5 13 7 27 22 Robot Miss Streak 9 | 1 9 4 4 4 2 5 . 3 6 3 4 . 3 5 . 1 . . 4 3 2 1 2 7 4 4 Penetration Max 3 | . . . . 1 . . . . . . . . . . . . . . 2 1 1 1 1 . 3 1 Secondary Targets 14 | . 1 3 3 2 . . . . . . . . . . . . . . 1 4 . . . . . . Max Gunslinging Chain 1 | . 1 1 1 1 . . . . . . . . . . . . . . 1 1 . . . . . . Capacitor 82 | . . . . . . . . . . . . . . . . . . . . . . . . . 82 . Shots Hit Robots 1525 | 11 68 108 192 114 69 47 . 53 107 24 22 . 20 43 4 31 7 . 91 124 9 9 22 94 181 75 Core Hits 1211 | 9 30 48 72 49 23 32 . 26 68 17 39 . 15 42 6 31 3 . 81 86 13 9 24 172 200 116 Critical Kills 8 | . . 1 . . . . . . . . . . . 1 . . . . . 4 . . . 1 . 1 Critical Parts Destroyed 30 | . . 1 2 2 2 2 . . . . . . . . . . . . 4 2 1 . . 2 5 7 Critical Strikes 83 | 1 6 6 2 2 2 2 . 6 . 2 . . . 5 . . . . 6 6 1 . 1 14 13 8 Burn 7 | 1 6 . . . . . . . . . . . . . . . . . . . . . . . . . Meltdown 1 | . . . . . . . . . . . . . . 1 . . . . . . . . . . . . Destroy 20 | . . 3 2 2 . 2 . . . . . . . . . . . . 4 6 1 . . . . . Blast 19 | . . 3 . . . . . 6 . . . . . 4 . . . . 2 . . . . 4 . . Corrupt 7 | . . . . . . . . . . . . . . . . . . . . . . . . . 7 . Smash 20 | . . . . . 2 . . . . . . . . . . . . . . . . . . 4 6 8 Sever 6 | . . . . . . . . . . . . . . . . . . . . . . . . 6 . . Impale 3 | . . . . . . . . . . 2 . . . . . . . . . . . . 1 . . . Melee Attacks 301 | . 10 . 17 43 3 . . 5 37 7 . . . . . . 7 . 5 5 . . 17 84 28 33 Impact 162 | . . . . 37 3 . . . 21 . . . . . . . . . . . . . . 44 25 32 Slashing 84 | . 10 . 17 6 . . . . 8 . . . . . . . . . . . . . . 40 3 . Piercing 55 | . . . . . . . . 5 8 7 . . . . . . 7 . 5 5 . . 17 . . 1 Sneak Attacks 41 | . 1 . 6 8 . . . . 7 7 . . . . . . . . 2 1 . . 2 6 . 1 Combat Hostiles . | . . . . . . . . . . . . . . . . . . . . . . . . . . . Follow-up Attacks 9 | . . . . . . . . . . . . . . . . . . . . . . . . 8 1 . Damage Inflicted 78155 | 138 917 1985 3977 3372 1478 1304 . 1659 4113 1079 1984 . 1482 2951 465 2338 485 . 4266 3847 537 282 2204 16046 12793 8453 Guns 19318 | 138 866 1240 3008 2302 1095 785 . 555 841 120 111 . 152 194 . . . . 2784 3244 537 282 551 81 310 122 Cannons 10635 | . . 745 199 . 131 109 . 621 992 96 330 . 252 1322 60 763 . . 746 . . . 132 825 2876 436 Explosions 39481 | . . . 183 428 . 410 . 483 936 329 1543 . 1078 1435 405 1575 . . 502 505 . . 1415 12825 8977 6452 Melee 8613 | . 50 . 587 642 252 . . . 1323 534 . . . . . . 485 . 198 98 . . 106 2315 630 1393 Ramming 108 | . 1 . . . . . . . 21 . . . . . . . . . 36 . . . . . . 50 Kinetic 25216 | 62 223 1985 3207 2302 1226 894 . 1176 1587 216 289 . 404 1054 . 302 . . 3280 3244 537 282 551 906 1023 466 Thermal 5718 | 76 643 . . . . . . . 379 . 152 . . 1156 60 461 . . 250 90 . . 132 . 2152 167 Explosive 35061 | . . . 183 428 . 410 . 483 803 329 1543 . 1078 741 405 1575 . . 502 415 . . 180 12499 7162 6325 Electromagnetic 3439 | . . . . . . . . . . . . . . . . . . . . . . . 1235 326 1826 52 Impact 4456 | . . . . 507 252 . . . 830 . . . . . . . . . . . . . . 906 568 1393 Slashing 2615 | . 50 . 587 135 . . . . 372 . . . . . . . . . . . . . . 1409 62 . Piercing 1542 | . . . . . . . . . 121 534 . . . . . . 485 . 198 98 . . 106 . . . Highest Corruption 16 | . . . . 2 1 1 . . 3 3 . . . . . . . . 8 8 . . 16 . . 5 Average Corruption 1 | . . . . 1 1 1 . . 1 2 . . . . . . . . 4 6 . . 4 . . 2 Corruption Purged 20 | . . . . 2 . 1 . . 1 3 . . . . . . . . . 7 . . 6 . . . Corruption Blocked 29 | . . . . . . . . . . . . . . . . . . . . . . . . 13 16 . Effects 84 | . . . . 17 15 . . . 20 4 . . . . . . . . 13 11 . . 3 . . 1 Message Errors 17 | . . . . 4 5 . . . 2 1 . . . . . . . . 1 3 . . 1 . . . Matter Fused 18 | . . . . 4 . . . . 4 1 . . . . . . . . 5 4 . . . . . . Heat Flow Errors 12 | . . . . 1 3 . . . 3 1 . . . . . . . . 3 . . . . . . 1 Energy Discharges 9 | . . . . 2 2 . . . 3 . . . . . . . . . 1 1 . . . . . . Parts Rejected 2 | . . . . . . . . . 1 . . . . . . . . . . . . . 1 . . . Parts Fused 2 | . . . . 2 . . . . . . . . . . . . . . . . . . . . . . Data Loss (minor) 12 | . . . . 2 2 . . . 4 . . . . . . . . . 2 1 . . 1 . . . Data Loss (major) 6 | . . . . 2 1 . . . . 1 . . . . . . . . 1 1 . . . . . . Misfires 2 | . . . . . . . . . 2 . . . . . . . . . . . . . . . . . Alerts 2 | . . . . . 1 . . . 1 . . . . . . . . . . . . . . . . . Weapon Failures 2 | . . . . . 1 . . . . . . . . . . . . . . 1 . . . . . . Overload Shots . | . . . . . . . . . . . . . . . . . . . . . . . . . . . Overflow Damage 4948 | . 10 . 95 348 249 . . 22 395 126 54 . 83 239 23 180 162 . 132 71 . . 95 966 1064 634 Projectiles 418 | . . . . . 4 . . 22 20 15 36 . 9 9 23 135 . . 58 . . . . 55 32 . Explosions 1532 | . . . . . . . . . 10 4 18 . 74 230 . 45 . . 8 3 . . 3 434 638 65 Melee 2998 | . 10 . 95 348 245 . . . 365 107 . . . . . . 162 . 66 68 . . 92 477 394 569 Knockbacks 67 | . . 7 2 3 2 2 . 4 10 1 2 . . 2 . . . . 3 . . . . 9 9 11 Impact 20 | . . . . 3 1 . . . 4 . . . . . . . . . . . . . . 2 5 5 Kinetic 43 | . . 7 2 . 1 2 . 4 6 1 2 . . 2 . . . . 2 . . . . 7 4 3 Secondary 4 | . . . . . . . . . . . . . . . . . . . 1 . . . . . . 3 Self-Inflicted Damage 1671 | . . . . 109 . . . 31 . . 31 . 27 53 . . . . . . . . 220 582 320 298 Shots 41 | . . . . 2 . . . 3 . . 2 . 1 1 . . . . . . . . 3 15 7 7 Rammed 7 | . . . . . . . . . 2 . . . . . . . . . 3 . . . . . . 2 Targets Rammed 8 | . 1 . . . . . . . 2 . . . . . . . . . 3 . . . . . . 2 Kicked . | . . . . . . . . . . . . . . . . . . . . . . . . . . . Crushed 1 | . 1 . . . . . . . . . . . . . . . . . . . . . . . . . Highest Temperature 487 | 100 246 . 330 232 157 132 . 378 232 164 21 . 318 285 . 235 . . 222 22 . . 487 293 368 377 Average Temperature 83 | 49 55 . 84 71 72 59 . 101 42 44 11 . 114 74 . 97 . . 95 12 . . 127 83 112 79 Received Heat Transfer 5527 | . 117 159 378 285 105 72 . 102 309 . 66 . 4 35 . 30 . . 6 146 . . 924 621 958 1210 Effects 21 | . . . 3 1 . . . 3 1 . . . . . . 1 . . . . . . 4 2 6 . Shutdowns 4 | . . . . . . . . 1 . . . . . . . . . . . . . . 2 . 1 . Energy Bleed 5 | . . . . 1 . . . 2 1 . . . . . . 1 . . . . . . . . . . Interference 8 | . . . 3 . . . . . . . . . . . . . . . . . . . . 2 3 . Matter Decay 3 | . . . . . . . . . . . . . . . . . . . . . . . 1 . 2 . Short Circuit 1 | . . . . . . . . . . . . . . . . . . . . . . . 1 . . . Siege Activations 23 | . . . . . . . . . . . . . . . . . . . 7 8 1 . . 1 3 3 Total Turns 377 | . . . . . . . . . . . . . . . . . . . 118 135 11 . . 16 58 39 Longest Duration 36 | . . . . . . . . . . . . . . . . . . . 35 36 11 . . 16 30 21 Martial Activations . | . . . . . . . . . . . . . . . . . . . . . . . . . . . Shielding Activations . | . . . . . . . . . . . . . . . . . . . . . . . . . . . Robots Disrupted 20 | . . . . . . . . . . . . . . . . . . . . . . . . . 16 4 Combat Hostiles 17 | . . . . . . . . . . . . . . . . . . . . . . . . . 13 4 Robots Corrupted 29 | . . . . 5 1 . . . 1 . . . . . . . . . . . . . 2 5 11 4 Combat Hostiles 21 | . . . . . 1 . . . 1 . . . . . . . . . . . . . 2 3 10 4 Parts Fried 41 | . . . . 6 3 . . . 2 . . . . . . . . . . . . . 4 4 17 5 Impact Corruptions 62 | . . . . 13 6 . . . 11 . . . . . . . . . . . . . . 12 8 12 Robots Melted 1 | . . . . . . . . . . . . . . 1 . . . . . . . . . . . . Combat Hostiles 1 | . . . . . . . . . . . . . . 1 . . . . . . . . . . . . Parts Melted 12 | 2 5 . . . . . . . . . . . . 1 . 2 . . 1 . . . . 1 . . Heat Transferred 6788 | 296 2146 . . . . . . . 396 . 185 . . 955 74 555 . . 259 50 . . . . 1635 237 Parts Sabotaged 2 | . . . . . . . . . . . 2 . . . . . . . . . . . . . . . Parts Stolen . | . . . . . . . . . . . . . . . . . . . . . . . . . . . Parts Stripped . | . . . . . . . . . . . . . . . . . . . . . . . . . . . Power Chain Reactions 14 | . . . . . . . . . . . . . . . . . . . . . . . . . 12 2 Alert | -11 -10 -10 -8 -7 -7 -7 -7 -6 -6 -6 -6 -6 -5 -5 -5 -5 -5 -4 -4 -4 -4 -4 -4 -3 -3 -2 ------- Run | Yrd Mat Sub Mat Fac Low Low Zio Pro Fac Low Low Dat Pro Fac Upp Upp Zhi Pro Fac Ext Cet Arc Hub Res Tes Res Maximum Alert Level 5 | . . . 1 2 . . . . 1 . . . . 3 . . . . 3 4 3 2 3 5 5 5 Low Security (%) 42 | 100 100 . 68 50 . . . . 33 . . . . 45 . . . . 30 45 . 66 31 . . . Level 1 23 | . . . 31 22 . . . . 66 . . . . 19 . . . . 20 32 . 29 8 5 . . Level 2 13 | . . . . 27 . . . . . . . . . 19 . . . . 37 9 64 3 49 40 . . Level 3 6 | . . . . . . . . . . . . . . 15 . . . . 11 7 36 . 10 2 32 . Level 4 7 | . . . . . . . . . . . . . . . . . . . . 5 . . . 25 22 72 Level 5 4 | . . . . . . . . . . . . . . . . . . . . . . . . 25 33 1 High Security 2 | . . . . . . . . . . . . . . . . . . . . . . . . . 11 26 Max Security . | . . . . . . . . . . . . . . . . . . . . . . . . . . . Peak Influence 2813 | 20 88 . 287 452 . . . . 307 . . . . 857 . . . . 776 1219 772 429 994 2451 2813 2494 Initial 1581 | . . . 58 128 . . . . 300 . . . . . . . . . . 373 674 235 . 521 1374 1581 Average 464 | 4 20 . 137 216 . . . . 202 . . . . 326 . . . . 335 326 676 137 370 1144 1577 1678 Influence Increases 18946 | 30 418 145 981 962 130 405 . 270 1176 90 362 . 231 1248 90 190 15 . 1125 1912 156 246 1732 2905 2564 1563 Destroy 0b10 Robot/C 8580 | . 240 120 560 460 100 340 . 220 400 80 320 . 180 300 80 140 . . 480 860 80 80 360 1300 1400 480 Destroy 0b10 Robot/NC 890 | 30 55 . 75 60 10 5 . 15 45 . 5 . 10 60 . . 15 . 130 40 5 15 60 95 70 90 Destroy Leader 1512 | . 60 10 180 134 20 30 . 30 116 10 20 . 20 54 10 20 . . 112 96 . . 116 218 178 78 Allied During Kill 1158 | . . . . . . . . 5 . . 17 . 21 20 . . . . . 621 46 95 292 . 41 . Successful Hack 302 | . 25 . 65 29 . . . . 36 . . . . 34 . . . . 17 . . . 47 31 18 . Select Force Hacks 100 | . . . . . . . . . . . . . . . . . . . . . . . 100 . . . Disable Machine 1425 | . 15 . 30 165 . . . . 165 . . . . 345 . . . . 75 75 15 30 225 120 135 30 Anti-Garrison Action 150 | . . . . . . . . . . . . . . 150 . . . . . . . . . . . . Destroy Structure 3389 | . 8 . 26 114 . . . . 99 . . . . 240 . . . . 176 160 10 26 532 1066 512 420 Advance Influence 300 | . . . . . . . . . 300 . . . . . . . . . . . . . . . . . Lose Combat Pursuer 1140 | . 15 15 45 . . 30 . . 15 . . . . 45 . 30 . . 135 60 . . . 75 210 465 Influence Decreases 16472 | 30 413 37 812 796 578 352 53 270 880 386 243 119 231 870 468 103 102 . 361 1471 773 834 738 1454 2196 1902 Entered New Map 4940 | . . 3 55 154 167 . 53 . . 110 . 119 . . 141 . 87 . . 391 531 353 . 473 1071 1232 Time Decay 8695 | 30 413 34 677 632 381 342 . 250 700 276 243 . 211 400 327 103 15 . 344 680 222 461 438 601 565 350 Lost Part 980 | . . . 80 10 30 10 . . 20 . . . . . . . . . 10 10 . . 110 230 170 300 Lost Ally 600 | . . . . . . . . 20 10 . . . 20 20 . . . . . 240 20 20 140 . 90 20 Purge Threat 1257 | . . . . . . . . . 150 . . . . 450 . . . . 7 150 . . 50 150 300 . Squads Dispatched 117 | . 2 . 6 12 . . . . 10 . 1 . . 5 . . . . 6 5 . . 9 18 28 15 Investigation 6 | . 1 . . . . . . . . . . . . . . . . . . . . . 3 2 . . Extermination 27 | . . . . 6 . . . . 5 . . . . 3 . . . . 2 . . . 2 4 3 2 Reinforcement 33 | . 1 . 2 2 . . . . 5 . . . . . . . . . 3 3 . . 4 3 8 2 Assault 34 | . . . . 1 . . . . . . 1 . . 2 . . . . 1 2 . . . 7 10 10 Garrison 17 | . . . 4 3 . . . . . . . . . . . . . . . . . . . 2 7 1 Intercept . | . . . . . . . . . . . . . . . . . . . . . . . . . . . Searches Triggered . | . . . . . . . . . . . . . . . . . . . . . . . . . . . Data Miner Redirects 6 | . . . . . . . . . . . . . . . . . . . . . . . . 4 1 1 Construction Impeded 6 | . . . . 1 . . . . . . . . . . . . . . . 2 . . . 1 2 . Haulers Reinforced 5 | . . . . . . . . . . . . . . . . . . . 1 . . . . 2 1 1 Active Scanning Responses . | . . . . . . . . . . . . . . . . . . . . . . . . . . . Cargo Convoy Interrupts . | . . . . . . . . . . . . . . . . . . . . . . . . . . . Stealth | -11 -10 -10 -8 -7 -7 -7 -7 -6 -6 -6 -6 -6 -5 -5 -5 -5 -5 -4 -4 -4 -4 -4 -4 -3 -3 -2 --------- Run | Yrd Mat Sub Mat Fac Low Low Zio Pro Fac Low Low Dat Pro Fac Upp Upp Zhi Pro Fac Ext Cet Arc Hub Res Tes Res Distress Signals 28 | . 4 . 1 . . . . . 2 . . . . . . . . . 4 3 1 1 3 5 1 3 Communications Jammed 120 | . . . . . . . . 2 . . . . 1 . . . . . 38 . . . 39 . 15 25 Distress Signals 115 | . . . . . . . . . . . . . . . . . . . 38 . . . 39 . 14 24 Times Spotted 625 | . 23 21 39 29 5 15 . 12 29 2 10 . 4 19 2 8 . 2 38 42 6 4 30 81 108 96 Peak Tracking Total 20 | . 3 5 5 4 3 5 . 3 4 1 6 . 3 6 2 5 . 5 6 7 5 2 13 10 13 20 Tactical Retreats 43 | . 1 1 3 . . 2 . . 1 . . . . 2 . 2 . . 5 2 . . . 5 11 8 Traps | -11 -10 -10 -8 -7 -7 -7 -7 -6 -6 -6 -6 -6 -5 -5 -5 -5 -5 -4 -4 -4 -4 -4 -4 -3 -3 -2 ------- Run | Yrd Mat Sub Mat Fac Low Low Zio Pro Fac Low Low Dat Pro Fac Upp Upp Zhi Pro Fac Ext Cet Arc Hub Res Tes Res Traps Triggered 13 | . . . . 3 1 . . . . . . . . . . . . . 1 2 . . 2 3 . 1 Indirectly 2 | . . . . . . . . . . . . . . . . . . . . . . . 2 . . . Trap Hack Attempts . | . . . . . . . . . . . . . . . . . . . . . . . . . . . Triggered . | . . . . . . . . . . . . . . . . . . . . . . . . . . . Disarmed . | . . . . . . . . . . . . . . . . . . . . . . . . . . . Reprogrammed . | . . . . . . . . . . . . . . . . . . . . . . . . . . . Reused . | . . . . . . . . . . . . . . . . . . . . . . . . . . . Traps Extracted . | . . . . . . . . . . . . . . . . . . . . . . . . . . . Installed . | . . . . . . . . . . . . . . . . . . . . . . . . . . . Triggered . | . . . . . . . . . . . . . . . . . . . . . . . . . . . Most Traps Carried 2 | . . . . . . 2 . . . . . . . . . . . . . . . . . . . . Machines | -11 -10 -10 -8 -7 -7 -7 -7 -6 -6 -6 -6 -6 -5 -5 -5 -5 -5 -4 -4 -4 -4 -4 -4 -3 -3 -2 ---------- Run | Yrd Mat Sub Mat Fac Low Low Zio Pro Fac Low Low Dat Pro Fac Upp Upp Zhi Pro Fac Ext Cet Arc Hub Res Tes Res Machines Disabled 101 | . 1 1 2 11 . 1 . . 11 . . . . 24 . 1 . . 5 6 1 2 15 8 10 2 Max in Single Turn 20 | . 1 1 1 4 . 1 . . 3 . . . . 20 . 1 . . 4 3 1 . 5 1 2 1 Garrison Access 3 | . . . . . . . . . 1 . . . . 1 . . . . . . . . . 1 . . Network Hub 4 | . . . . . . . . . . . . . . . . . . . . . . . 4 . . . Energy Cycler 2 | . . . . . . . . . . . . . . . . . . . . 2 . . . . . . Machines Repaired . | . . . . . . . . . . . . . . . . . . . . . . . . . . . Machines Dismantled 1 | . . . . . . . . . . . . . . . . . . . . . 1 . . . . . Machines Sabotaged 2 | . . . . . . . . . . . . . . . . . . . . . . . 2 . . . Overloaded Fab Kills . | . . . . . . . . . . . . . . . . . . . . . . . . . . . Hacking | -11 -10 -10 -8 -7 -7 -7 -7 -6 -6 -6 -6 -6 -5 -5 -5 -5 -5 -4 -4 -4 -4 -4 -4 -3 -3 -2 --------- Run | Yrd Mat Sub Mat Fac Low Low Zio Pro Fac Low Low Dat Pro Fac Upp Upp Zhi Pro Fac Ext Cet Arc Hub Res Tes Res Machines Accessed 99 | . 9 2 13 13 1 1 . . 14 2 1 3 . 9 . . 4 . 3 1 . . 9 8 5 1 Terminals 64 | . 6 . 8 10 . . . . 8 . . . . 6 . . . . 3 1 . . 9 7 5 1 Fabricators 1 | . . . . . . . . . 1 . . . . . . . . . . . . . . . . . Repair Stations 6 | . 1 . 1 2 . . . . 1 . . . . 1 . . . . . . . . . . . . Recycling Units 7 | . 2 . 1 . . . . . 2 . . . . 2 . . . . . . . . . . . . Scanalyzers 3 | . . . 2 . . . . . 1 . . . . . . . . . . . . . . . . . Garrison Access 4 | . . . 1 1 . . . . 1 . . . . . . . . . . . . . . 1 . . Total Hacks 314 | . 27 3 32 39 1 1 . . 37 6 1 24 . 26 . . 16 . 10 3 . . 25 40 19 4 Successful 186 | . 16 3 17 16 1 1 . . 27 6 1 24 . 16 . . 16 . 7 1 . . 19 6 9 . Failed 126 | . 11 . 14 23 . . . . 9 . . . . 10 . . . . 3 2 . . 6 34 10 4 Catastrophic 30 | . 2 . 3 4 . . . . 3 . . . . 1 . . . . 2 . . . 1 8 4 2 Database Lockouts 2 | . . . 1 . . . . . 1 . . . . . . . . . . . . . . . . . Manual 178 | . 17 . 21 26 . . 1 . 22 . . . . 18 . . . . 8 . 1 . 23 25 12 4 Terminals 207 | . 15 . 21 28 . . . . 24 . . . . 20 . . . . 10 3 . . 25 38 19 4 Fabricators 1 | . . . . . . . . . 1 . . . . . . . . . . . . . . . . . Repair Stations 23 | . 8 . 2 9 . . . . 2 . . . . 2 . . . . . . . . . . . . Recycling Units 14 | . 4 . 3 . . . . . 3 . . . . 4 . . . . . . . . . . . . Scanalyzers 10 | . . . 4 . . . . . 6 . . . . . . . . . . . . . . . . . Garrison Access 7 | . . . 2 2 . . . . 1 . . . . . . . . . . . . . . 2 . . Terminal Hacks 84 | . 1 3 2 3 1 1 . . 3 6 1 24 . 4 . . 16 . 3 1 . . 5 4 6 . Record 17 | . . 2 . . . . . . . 5 . 6 . . . . 4 . . . . . . . . . Part Schematic 12 | . . . . . . . . . . . . 8 . . . . 4 . . . . . . . . . Robot Schematic 7 | . . . . . . . . . . . . 7 . . . . . . . . . . . . . . Robot Analysis 6 | . 1 . . 1 . . . . . . . . . . . . 4 . . . . . . . . . Prototype ID Bank 10 | . . . 2 . . . . . . . . 3 . . . . 4 . . . . . 1 . . . Open Door 5 | . . . . . 1 1 . . . 1 1 . . . . . . . . . . . . . 1 . Level Access Points 1 | . . . . . . . . . . . . . . . . . . . . . . . 1 . . . Terminal Index 4 | . . . . 1 . . . . 1 . . . . . . . . . . . . . 1 1 . . Alert Level 6 | . . . . 1 . . . . 1 . . . . 1 . . . . 1 . . . . 1 1 . Unreport Threat 10 | . . . . . . . . . 1 . . . . 3 . . . . 1 1 . . 1 1 2 . Locate Traps 2 | . . . . . . . . . . . . . . . . . . . 1 . . . . . 1 . Recall Extermination 1 | . . . . . . . . . . . . . . . . . . . . . . . . . 1 . Recall Assault 1 | . . . . . . . . . . . . . . . . . . . . . . . . 1 . . Zone Layout 1 | . . . . . . . . . . . . . . . . . . . . . . . 1 . . . Proto ID Catalog 1 | . . 1 . . . . . . . . . . . . . . . . . . . . . . . . Fabricator Hacks 1 | . . . . . . . . . 1 . . . . . . . . . . . . . . . . . Build 1 | . . . . . . . . . 1 . . . . . . . . . . . . . . . . . Repair Station Hacks 14 | . 4 . 2 5 . . . . 1 . . . . 2 . . . . . . . . . . . . Scan Component 7 | . 1 . 1 3 . . . . 1 . . . . 1 . . . . . . . . . . . . Repair 5 | . 1 . 1 2 . . . . . . . . . 1 . . . . . . . . . . . . Refit 2 | . 2 . . . . . . . . . . . . . . . . . . . . . . . . . Recycling Unit Hacks 5 | . 2 . . . . . . . 2 . . . . 1 . . . . . . . . . . . . Retrieve Components 5 | . 2 . . . . . . . 2 . . . . 1 . . . . . . . . . . . . Scanalyzer 7 | . . . 2 . . . . . 5 . . . . . . . . . . . . . . . . . Retrieve Study 7 | . . . 2 . . . . . 5 . . . . . . . . . . . . . . . . . Garrison Access Hacks 2 | . . . . . . . . . 1 . . . . . . . . . . . . . . 1 . . Seal Access 2 | . . . . . . . . . 1 . . . . . . . . . . . . . . 1 . . Unauthorized Hacks 73 | . 9 . 11 8 . . . . 14 . . . . 9 . . . . 4 . . . 14 1 3 . Terminals 69 | . 7 . 9 8 . . . . 14 . . . . 9 . . . . 4 . . . 14 1 3 . Track 1 | . . . . . . . . . . . . . . . . . . . . . . . . . 1 . Assimilate 7 | . . . . . . . . . 2 . . . . 3 . . . . . . . . 2 . . . Botnet 18 | . 1 . 2 2 . . . . 4 . . . . 1 . . . . 1 . . . 4 1 2 . Operators 5 | . 1 . 1 1 . . . . 2 . . . . . . . . . . . . . . . . . Skim 35 | . 5 . 6 5 . . . . 6 . . . . 5 . . . . 3 . . . 5 . . . Sabotage 3 | . . . . . . . . . . . . . . . . . . . . . . . 3 . . . Fabricators . | . . . . . . . . . . . . . . . . . . . . . . . . . . . Repair Stations . | . . . . . . . . . . . . . . . . . . . . . . . . . . . Recycling Units 4 | . 2 . 2 . . . . . . . . . . . . . . . . . . . . . . . Reject 3 | . 2 . 1 . . . . . . . . . . . . . . . . . . . . . . . Recyclers 1 | . . . 1 . . . . . . . . . . . . . . . . . . . . . . . Scanalyzers . | . . . . . . . . . . . . . . . . . . . . . . . . . . . Garrison Access . | . . . . . . . . . . . . . . . . . . . . . . . . . . . Data Cores Recovered 2 | . . . . . . . . . . . . . . 1 . . . . . . . . 1 . . . Used . | . . . . . . . . . . . . . . . . . . . . . . . . . . . Hacking Detections 70 | . 7 . 10 13 . . . . 10 . . . . 9 . . . . 3 1 1 . 6 6 3 1 Full Trace Events 3 | . 1 . 1 . . . . . . . . . . . . . . . . . . . . 1 . . Feedback Events . | . . . . . . . . . . . . . . . . . . . . . . . . . . . Feedback Blocked . | . . . . . . . . . . . . . . . . . . . . . . . . . . . Robot Schematics Acquired 7 | . . . . . . . . . . . . 7 . . . . . . . . . . . . . . Robots Built . | . . . . . . . . . . . . . . . . . . . . . . . . . . . Authchips . | . . . . . . . . . . . . . . . . . . . . . . . . . . . Time . | . . . . . . . . . . . . . . . . . . . . . . . . . . . Total Robot Build Rating . | . . . . . . . . . . . . . . . . . . . . . . . . . . . Part Schematics Acquired 17 | . . . . . . . . . . . . 8 . . . . 4 . . . . . . . 5 . Parts Built 1 | . . . . . . . . . 1 . . . . . . . . . . . . . . . . . Authchips . | . . . . . . . . . . . . . . . . . . . . . . . . . . . Time 128 | . . . . . . . . . 128 . . . . . . . . . . . . . . . . . Total Part Build Rating 8 | . . . . . . . . . 8 . . . . . . . . . . . . . . . . . Part Studies Acquired 7 | . . . 2 . . . . . 5 . . . . . . . . . . . . . . . . . Parts Repaired 5 | . 1 . 1 2 . . . . . . . . . 1 . . . . . . . . . . . . Time 190 | . 26 . 32 82 . . . . . . . . . 50 . . . . . . . . . . . . Parts Recycled . | . . . . . . . . . . . . . . . . . . . . . . . . . . . Recycled Matter . | . . . . . . . . . . . . . . . . . . . . . . . . . . . Retrieved Matter . | . . . . . . . . . . . . . . . . . . . . . . . . . . . Retrieved Components 17 | . 12 . . . . . . . 4 . . . . 1 . . . . . . . . . . . . Parts Scanalyzed . | . . . . . . . . . . . . . . . . . . . . . . . . . . . Part Schematics Acquired . | . . . . . . . . . . . . . . . . . . . . . . . . . . . Parts Damaged . | . . . . . . . . . . . . . . . . . . . . . . . . . . . Bothacking | -11 -10 -10 -8 -7 -7 -7 -7 -6 -6 -6 -6 -6 -5 -5 -5 -5 -5 -4 -4 -4 -4 -4 -4 -3 -3 -2 ------------ Run | Yrd Mat Sub Mat Fac Low Low Zio Pro Fac Low Low Dat Pro Fac Upp Upp Zhi Pro Fac Ext Cet Arc Hub Res Tes Res Used RIF Installer . | . . . . . . . . . . . . . . . . . . . . . . . . . . . Robots Hacked . | . . . . . . . . . . . . . . . . . . . . . . . . . . . Non-combat . | . . . . . . . . . . . . . . . . . . . . . . . . . . . Combat . | . . . . . . . . . . . . . . . . . . . . . . . . . . . Robot Hacks Applied . | . . . . . . . . . . . . . . . . . . . . . . . . . . . Relay Couplers Released 8 | . . . . . . . . . . . . . . 4 . . . . 4 . . . . . . . Machine Destruction 4 | . . . . . . . . . . . . . . 4 . . . . . . . . . . . . Programmers 4 | . . . . . . . . . . . . . . . . . . . 4 . . . . . . . Fabnet Peak Effective % . | . . . . . . . . . . . . . . . . . . . . . . . . . . . Robots Rewired 26 | . . . . . . 1 . . . . 2 . . 1 . . . . . 18 . . . . 3 1 Allies Hacked 1 | . . . . . . . . . . . . . . . . . . . . 1 . . . . . . Hacks Repelled . | . . . . . . . . . . . . . . . . . . . . . . . . . . . Allies | -11 -10 -10 -8 -7 -7 -7 -7 -6 -6 -6 -6 -6 -5 -5 -5 -5 -5 -4 -4 -4 -4 -4 -4 -3 -3 -2 -------- Run | Yrd Mat Sub Mat Fac Low Low Zio Pro Fac Low Low Dat Pro Fac Upp Upp Zhi Pro Fac Ext Cet Arc Hub Res Tes Res Total Allies 44 | . . . . . . 1 . . 1 . 2 . . 1 . . . . . 21 5 . . . 11 2 Largest Group 14 | . . . . . . 1 1 1 1 . 2 2 2 2 . . . . . 14 9 9 7 . 3 2 Highest-Rated Group 764 | . . . . . . 16 16 16 26 . 61 61 61 81 . . . . . 582 764 764 509 . 160 114 Highest-Rated Ally 159 | . . . . . . 16 16 16 26 . 32 32 32 49 . . . . . 159 159 159 96 . 149 58 Total Orders 15 | . . . . . . . . . 2 . . . 7 2 . . . . . . . . . . 4 . STAY 7 | . . . . . . . . . 1 . . . 3 1 . . . . . . . . . . 2 . FOLLOW 8 | . . . . . . . . . 1 . . . 4 1 . . . . . . . . . . 2 . Ally Attacks 361 | . . . . . . . . 14 . . 10 . 10 11 . . . . . 138 17 27 71 . 60 3 Total Damage 11826 | . . . . . . . . 154 . . 234 . 159 429 . . . . . 3420 389 939 2480 . 3485 137 Kills 70 | . . . . . . . . 2 . . 1 . 3 2 . . . . . 21 2 5 15 . 19 . Allies Corrupted 4 | . . . . . . . . . . . . . . 1 . . . . . 1 . . 2 . . . Allies Melted . | . . . . . . . . . . . . . . . . . . . . . . . . . . . Intel | -11 -10 -10 -8 -7 -7 -7 -7 -6 -6 -6 -6 -6 -5 -5 -5 -5 -5 -4 -4 -4 -4 -4 -4 -3 -3 -2 ------- Run | Yrd Mat Sub Mat Fac Low Low Zio Pro Fac Low Low Dat Pro Fac Upp Upp Zhi Pro Fac Ext Cet Arc Hub Res Tes Res Active Infowar (turns) 33111 | 39 1624 1786 173 2616 1798 1940 1277 1953 516 2088 1330 123 1607 1378 750 1011 291 341 987 2363 280 1598 1280 1084 1906 972 Optics 14500 | . . . . 2616 1798 1940 1277 1953 516 . . . . 896 . . . . . . . . . 626 1906 972 Sensors 14788 | . . . . . . . . . . 2088 1330 123 1607 1358 750 1011 291 341 710 2363 280 1598 938 . . . Terrain 1163 | . . . . . . . . . . . . . . . . . . . 167 . . . 996 . . . Seismic 7147 | 39 1624 1786 173 2437 1088 . . . . . . . . . . . . . . . . . . . . . Jamming 4067 | . . . . . 57 40 . 1135 . . . . 5 . . . . . 747 . . . 113 458 794 718 Robot Analysis Total 6 | . 1 . . 1 . . . . . . . . . . . . 4 . . . . . . . . . Derelict Logs Recovered 15 | . . 2 . . 1 1 1 1 . 3 1 . 1 . 2 2 . . . . . . . . . . Drone Launches . | . . . . . . . . . . . . . . . . . . . . . . . . . . . Drone Recoveries . | . . . . . . . . . . . . . . . . . . . . . . . . . . . Exploration | -11 -10 -10 -8 -7 -7 -7 -7 -6 -6 -6 -6 -6 -5 -5 -5 -5 -5 -4 -4 -4 -4 -4 -4 -3 -3 -2 ------------- Run | Yrd Mat Sub Mat Fac Low Low Zio Pro Fac Low Low Dat Pro Fac Upp Upp Zhi Pro Fac Ext Cet Arc Hub Res Tes Res Turns Passed 43858 | 139 1736 4687 3659 2617 1798 1940 1277 1953 2994 2132 1330 123 1611 1428 750 1011 291 341 1047 2682 475 1628 1311 1925 1906 1067 Spaces Moved 19467 | 64 818 2074 1254 1111 998 1050 745 1103 1273 1166 754 77 939 555 458 558 166 204 361 901 154 128 536 846 653 521 Core 73 | 5 . . . . . . . . . . . . . . . . . . . . . . . . . 68 Treads 18422 | 59 818 2074 1254 1111 998 1050 745 1103 1273 1166 754 77 939 555 458 558 166 204 361 901 154 128 536 93 572 315 Legs . | . . . . . . . . . . . . . . . . . . . . . . . . . . . Wheels 834 | . . . . . . . . . . . . . . . . . . . . . . . . 753 81 . Hover . | . . . . . . . . . . . . . . . . . . . . . . . . . . . Flight 138 | . . . . . . . . . . . . . . . . . . . . . . . . . . 138 Fastest Speed 26 | 50 160 160 160 160 165 165 167 161 160 160 160 160 160 157 157 157 157 157 157 163 160 160 160 113 153 26 Average Speed 165 | 151 160 164 243 165 165 166 167 162 164 160 160 160 160 157 157 157 157 157 161 163 162 160 160 138 170 125 Slowest Speed 480 | 160 160 250 255 249 165 167 167 243 244 160 160 160 160 163 157 157 157 157 163 240 165 160 240 240 270 480 Overloaded Moves . | . . . . . . . . . . . . . . . . . . . . . . . . . . . Propulsion Burnouts . | . . . . . . . . . . . . . . . . . . . . . . . . . . . Robots Hopped 2 | . . . . . . . . . . . . . . . . . . . . 1 . . . . . 1 Potential Cave-ins 12 | . . . . . . . . . 2 . . . . 5 . . . . . . . . . 5 . . Cave-ins Triggered 1 | . . . . . . . . . . . . . . . . . . . . . . . . 1 . . Teleports 1 | . . . . . . . . . . . . . . . . . . . . . . . . . . 1 Exploration Rate (%) 65 | 3 97 97 97 34 98 98 82 98 30 94 99 69 90 20 99 66 60 47 7 89 58 74 62 28 62 19 Regions Visited 26 Branch Regions 18 Pre-discovered Areas 19 | . . 2 1 3 1 . 2 . 1 1 . 1 . 1 . 1 3 . . . . . 2 . . . Known Exits Taken 20 | . 1 1 . 1 1 . . 1 . 1 1 1 1 1 1 1 1 1 1 1 1 1 1 1 . . Unknown Exits Taken 6 | 1 . . 1 . . 1 1 . 1 . . . . . . . . . . . . . . . 1 . Scrap Searched 49 | . . 11 . . 3 5 2 5 . 10 5 . 2 . 1 4 . 1 . . . . . . . . Spaces Dug 612 | . 4 12 12 33 . 3 . 29 18 1 23 . 4 36 24 54 . . 9 10 . . 222 83 29 6 Terrain Destroyed 3270 | . 6 18 20 135 5 33 . 58 138 85 215 . 127 155 58 166 . . 96 106 2 1 423 849 344 230 Melee 89 | . 3 . 6 33 . . . 5 5 . . . . . . . . . . 2 . . 8 26 1 . Projectile 419 | . 3 18 8 14 5 8 . 15 46 23 20 . 11 70 6 15 . . 46 40 2 1 31 22 10 5 AOE 2750 | . . . 6 87 . 25 . 38 87 62 195 . 116 85 52 151 . . 46 59 . . 384 801 332 224 Terrain Rammed 1 | . . . . . . . . . . . . . . . . . . . . . . . . . . 1 Walls Destroyed 1 | . . . . . . . . . . . . . . . . . . . . . . . . . . 1 Machines Disabled . | . . . . . . . . . . . . . . . . . . . . . . . . . . . Actions | -11 -10 -10 -8 -7 -7 -7 -7 -6 -6 -6 -6 -6 -5 -5 -5 -5 -5 -4 -4 -4 -4 -4 -4 -3 -3 -2 --------- Run | Yrd Mat Sub Mat Fac Low Low Zio Pro Fac Low Low Dat Pro Fac Upp Upp Zhi Pro Fac Ext Cet Arc Hub Res Tes Res Total 28210 | 86 1104 2945 1663 1665 1079 1174 780 1182 1985 1384 831 77 1013 988 476 641 185 224 679 1934 354 1544 890 1332 1215 780 Wait 5732 | 4 174 632 219 380 32 60 26 21 495 122 17 1 34 281 6 28 1 20 183 773 169 1400 261 166 142 85 Move 19436 | 63 817 2073 1253 1110 997 1049 744 1102 1272 1165 753 76 938 554 457 557 165 203 360 898 153 127 535 844 652 519 Hop 2 | . . . . . . . . . . . . . . . . . . . . 1 . . . . . 1 Pick Up 252 | 2 15 12 28 13 4 4 4 1 28 25 1 . 2 11 . 1 2 . 14 9 4 3 2 39 25 3 Fast Attach 186 | 7 3 5 13 8 2 6 . 4 14 12 1 . 5 5 . 5 4 . 5 8 1 2 6 24 26 20 Attach 132 | . 1 3 14 4 3 2 1 1 14 3 1 . . 3 . 1 1 . 7 4 1 . 6 27 20 15 Detach 26 | . 4 . 2 . . . . . 3 . . . . . . . . . 1 . . 1 . 3 8 4 Swap 324 | 1 9 37 11 31 10 8 1 15 21 10 4 . 8 25 2 9 1 1 28 17 4 3 19 28 17 4 Drop 285 | . 7 9 26 18 3 9 4 4 30 18 . . 7 15 . 5 4 . 14 20 6 5 7 25 42 7 Fire 1347 | 9 63 174 80 58 25 34 . 29 69 22 34 . 19 90 11 35 . . 59 71 7 3 37 99 242 77 Melee 282 | . 10 . 17 43 3 . . 5 37 7 . . . . . . 7 . 5 5 . . 17 68 25 33 Ram 1 | . . . . . . . . . . . . . . . . . . . . . . . . . . 1 Kick . | . . . . . . . . . . . . . . . . . . . . . . . . . . . Crush 8 | . 1 . . . . . . . 2 . . . . . . . . . 3 . . . . . . 2 Escape Stasis 13 | . . . . . . . . . . . . . . . . . . . . . . . . 9 . 4 Rewire 175 | . . . . . . 2 . . . . 20 . . 4 . . . . . 128 . . . . 16 5 Trap . | . . . . . . . . . . . . . . . . . . . . . . . . . . . Miscellaneous 9 | . . . . . . . . . . . . . . . . . . . . . 9 . . . . . Route ------- -11/Scrapyard -10/Materials (discovered 5 exits: [*Mat x3] / [*Min] / *Sub) -10/Subcaves (discovered 2 exits: *Mat x2) -8/Materials (discovered 4 exits: *Fac x3 / *Sto) -7/Factory (discovered 6 exits: Fac x4 / *Low x2) -7/Lower Caves -7/Lower Caves (discovered 2 exits: *Fac / *Zio) -7/Zion -6/Proximity Caves -6/Factory (discovered 5 exits: *Fac x4 / *Low) -6/Lower Caves -6/Lower Caves (discovered 2 exits: *Fac / *Dat) -6/Data Miner -5/Proximity Caves -5/Factory (discovered 4 exits: Fac x3 / *Upp) -5/Upper Caves -5/Upper Caves (discovered 2 exits: *Fac / *Zhi) -5/Zhirov -4/Proximity Caves -4/Factory (discovered 3 exits: *Ext x2 / Arm) -4/Extension (discovered 2 exits: *Res / *Cet) -4/Cetus -4/Archives (discovered 2 exits: *Res / *Hub) -4/Hub_04(d) (discovered 4 exits: *Res x4) -3/Research -3/Testing -2/Research History --------- Turn | Location | Event 21 | -11/Scrapyard | Discovered new exit (range 15) 140 | -11/Scrapyard | Entered Materials 201 | -10/Materials | Discovered new exit (range 14) 312 | -10/Materials | Build established: Mutant 377 | -10/Materials | Discovered new exit (range 12) 466 | -10/Materials | Discovered new exit (range 9) 553 | -10/Materials | Repaired Hcp. Storage Unit 1466 | -10/Materials | Identified exit to Subcaves 1488 | -10/Materials | Discovered new exit (range 4) 1589 | -10/Materials | Loaded intel: 13 trap records 1668 | -10/Materials | Learned 4 Recycling zone layouts 1778 | -10/Materials | Learned Materials trap positions 1876 | -10/Materials | Entered Subcaves 1877 | -10/Subcaves | Approached by a straggling Scientist 1877 | -10/Subcaves | Identified exit to Materials 1878 | -10/Subcaves | Learned Materials emergency access door positions 3567 | -10/Subcaves | Ambushed by Subdwellers from Twisted Machinery 3635 | -10/Subcaves | Lost 4 parts (1p1n1u1w) 4129 | -10/Subcaves | Visited 4L-MR0's lab 4151 | -10/Subcaves | Found Meta Core 4235 | -10/Subcaves | A swath of the cavern ceiling suddenly collapsed 4604 | -10/Subcaves | A swath of the cavern ceiling suddenly collapsed 4640 | -10/Subcaves | Build established: Derelict-Mutant 4782 | -10/Subcaves | Shifting Twisted Machinery released Sub. Power Source 4805 | -10/Subcaves | Shifting Twisted Machinery released Spk. Treads 5206 | -10/Subcaves | Build established: Mutant 5486 | -10/Subcaves | Learned location of Storage (-8) 5752 | -10/Subcaves | Build established: Derelict-Mutant 5826 | -10/Subcaves | Shifting Twisted Machinery released Sub. Beam Cannon 5826 | -10/Subcaves | Shifting Twisted Machinery released Mak. Leg 6108 | -10/Subcaves | Visited Clippyterm 6113 | -10/Subcaves | Learned location of Extension (-4) 6194 | -10/Subcaves | Build established: Mutant 6563 | -10/Subcaves | Entered Materials 6563 | -8/Materials | Evolved 4 slots: Propulsion x1, Utility x1, Weapon x2 6564 | -8/Materials | Identified exit to Storage 6565 | -8/Materials | Loaded intel: 15 trap records 6805 | -8/Materials | Lost 5 parts (2n1u2w) 7077 | -8/Materials | Build established: Derelict-Tank 7593 | -8/Materials | Discovered new exit (range 13) 7758 | -8/Materials | Build established: Tank 8326 | -8/Materials | Repaired Imp. Treads 8624 | -8/Materials | Discovered new exit (range 11) 9229 | -8/Materials | Garrison activated, responded to threat 9369 | -8/Materials | Discovered new exit (range 16) 9506 | -8/Materials | Central database locked down 9680 | -8/Materials | Garrison activated, responded to threat 9888 | -8/Materials | Learned location of 1 exit from Storage 9923 | -8/Materials | Learned Factory stockpile data 9948 | -8/Materials | Learned location of 1 exit from Recycling 10222 | -8/Materials | Entered Factory 10222 | -7/Factory | Evolved 2 slots: Propulsion x1, Utility x1 10223 | -7/Factory | Identified exit to Factory 10223 | -7/Factory | Identified exit to Lower Caves 11649 | -7/Factory | Repaired Hrd. Medium Armor Plating 11993 | -7/Factory | Repaired Gauss Rifle 12435 | -7/Factory | Garrison activated, responded to threat 12591 | -7/Factory | Learned location of Upper Caves (-4) 12622 | -7/Factory | First assault squad dispatched 12659 | -7/Factory | Learned 2 Upper Caves zone layouts 12677 | -7/Factory | Learned location of 1 exit from Extension 12707 | -7/Factory | Build established: Scavenger-Tank 12716 | -7/Factory | Learned Factory stockpile data 12839 | -7/Factory | Entered Lower Caves 12840 | -7/Lower Caves | Identified exit to Lower Caves 12950 | -7/Lower Caves | Spotted B-75 Beast 12989 | -7/Lower Caves | Destroyed B-75 Beast 14348 | -7/Lower Caves | Attracted the attention of an 0b10 checkpoint 14637 | -7/Lower Caves | Entered another Lower Caves area 14957 | -7/Lower Caves | Discovered exit to Factory (range 13) 15716 | -7/Lower Caves | Discovered new exit (range 16) 15980 | -7/Lower Caves | Attracted the attention of an 0b10 outpost 16577 | -7/Lower Caves | Entered Zion 16577 | -7/Zion | Accompanied by 1 ally 16633 | -7/Zion | Received a visual enhancement algorithm 16634 | -7/Zion | Ran a visual enhancement algorithm 16760 | -7/Zion | Discovered new exit (range 17) 16873 | -7/Zion | Given A8's code to call for help 16999 | -7/Zion | Learned location of Warlord (-4) 17026 | -7/Zion | Found CR-A16's Pointy Stick 17052 | -7/Zion | Learned Factory trap positions 17352 | -7/Zion | Found GAL Module 17854 | -7/Zion | Entered Proximity Caves 17854 | -6/Proximity Caves | Accompanied by 1 ally 18062 | -6/Proximity Caves | Spotter reported a threat 18194 | -6/Proximity Caves | Spotter reported a threat 18869 | -6/Proximity Caves | Build established: Derelict-Tank 18997 | -6/Proximity Caves | Attracted the attention of an 0b10 checkpoint 19026 | -6/Proximity Caves | Learned location of 1 exit from Factory 19250 | -6/Proximity Caves | Discovered exit to Factory (range 10) 19606 | -6/Proximity Caves | Attached Meta Core, gained temporary slots: Propulsion, Utility, Weapon 19807 | -6/Proximity Caves | Entered Factory 19807 | -6/Factory | Evolved 2 slots: Power x1, Propulsion x1 19808 | -6/Factory | Identified exit to Factory 19809 | -6/Factory | Loaded intel: 77 trap records 20309 | -6/Factory | Spotted B-75 Beast 20342 | -6/Factory | Revealed the true nature of CR-A16's Pointy Stick 20345 | -6/Factory | Destroyed B-75 Beast 20984 | -6/Factory | Build established: Tank 21588 | -6/Factory | Discovered new exit (range 3) 21635 | -6/Factory | Learned Factory trap positions 21677 | -6/Factory | Learned location of 1 exit from Extension 21707 | -6/Factory | Learned 2 Upper Caves zone layouts 21728 | -6/Factory | Learned Factory stockpile data 21741 | -6/Factory | Learned location of 2 exits from Factory 21770 | -6/Factory | Learned 2 Lower Caves zone layouts 21843 | -6/Factory | Learned Hub_04(d) trap positions 22061 | -6/Factory | Central database locked down 22442 | -6/Factory | Discovered exit to Factory (range 4) 22593 | -6/Factory | Fabricated Adv. Remote Force Field? 22801 | -6/Factory | Entered Lower Caves 22816 | -6/Lower Caves | Learned Factory stockpile data 22849 | -6/Lower Caves | Learned Factory stockpile data 23033 | -6/Lower Caves | Entered an active Warlord outpost 23065 | -6/Lower Caves | Learned Research garrison access intel 23065 | -6/Lower Caves | Learned Armory terminal intel 23088 | -6/Lower Caves | Destroyed 3P-AMG(g) 23138 | -6/Lower Caves | Build established: Skirmisher 23316 | -6/Lower Caves | Encountered a Warlord checkpoint 24349 | -6/Lower Caves | Attracted the attention of an 0b10 checkpoint 24726 | -6/Lower Caves | Discovered new exit (range 16) 24749 | -6/Lower Caves | Identified exit to Lower Caves 24933 | -6/Lower Caves | Entered another Lower Caves area 24961 | -6/Lower Caves | Discovered exit to Factory (range 6) 25409 | -6/Lower Caves | Learned location of 1 exit from Factory 25730 | -6/Lower Caves | Attracted the attention of an 0b10 outpost 25761 | -6/Lower Caves | Destroyed 7 combat bots 25769 | -6/Lower Caves | Discovered new exit (range 8) 26255 | -6/Lower Caves | Identified exit to Data Miner 26263 | -6/Lower Caves | Entered Data Miner 26263 | -6/Data Miner | Accompanied by 2 allies 26263 | -6/Data Miner | Discovered new exit (range 6) 26294 | -6/Data Miner | Met Data Miner 26326 | -6/Data Miner | Learned location of Section 7 (-2) 26326 | -6/Data Miner | Acquired the access code to Warlord's prototype stash 26348 | -6/Data Miner | Received God Mode back door access code from Data Miner 26383 | -6/Data Miner | Identified exit to Proximity Caves 26386 | -6/Data Miner | Entered Proximity Caves 26386 | -5/Proximity Caves | Accompanied by 2 allies 26662 | -5/Proximity Caves | Found DCF Scrap (12 items) 27326 | -5/Proximity Caves | Learned Factory terminal intel 27776 | -5/Proximity Caves | Discovered exit to Factory (range 12) 27997 | -5/Proximity Caves | Entered Factory 27997 | -5/Factory | Accompanied by 1 ally 27997 | -5/Factory | Evolved 2 slots: Utility x2 27998 | -5/Factory | Identified exit to Upper Caves 27999 | -5/Factory | Identified exit to Factory 28000 | -5/Factory | Loaded intel: 103 trap records 28002 | -5/Factory | Loaded intel: 26 terminal locations 28288 | -5/Factory | Build established: Scavenger-Skirmisher 28466 | -5/Factory | Watched by a mysterious "MATRIX" hacker. 28628 | -5/Factory | P-70 Sage assimilated allied Guardian 5a 28677 | -5/Factory | Garrison activated, responded to threat 28737 | -5/Factory | Repaired Lrn. Missile Launcher+? 28765 | -5/Factory | Build established: Skirmisher 29095 | -5/Factory | Learned Extension stockpile data 29164 | -5/Factory | Learned 4 Quarantine zone layouts 29222 | -5/Factory | Learned Research security intel 29358 | -5/Factory | Learned Armory trap positions 29416 | -5/Factory | Learned Research security intel 29425 | -5/Factory | Entered Upper Caves 29450 | -5/Upper Caves | Encountered a Warlord checkpoint 29648 | -5/Upper Caves | Learned 8 Factory zone layouts 29682 | -5/Upper Caves | Learned Factory terminal intel 29686 | -5/Upper Caves | Discovered new exit (range 12) 29822 | -5/Upper Caves | Entered a destroyed Warlord outpost 30173 | -5/Upper Caves | Identified exit to Upper Caves 30175 | -5/Upper Caves | Entered another Upper Caves area 30226 | -5/Upper Caves | Found Alien Artifact 30226 | -5/Upper Caves | Identified Core Expander 30226 | -5/Upper Caves | Installed Core Expander, added new Propulsion slot 30792 | -5/Upper Caves | Learned Factory stockpile data 30954 | -5/Upper Caves | Attacked by a delusional Derelict stockpiling parts 31158 | -5/Upper Caves | Discovered new exit (range 13) 31185 | -5/Upper Caves | Identified exit to Zhirov 31186 | -5/Upper Caves | Entered Zhirov 31186 | -5/Zhirov | Discovered new exit (range 3) 31215 | -5/Zhirov | Met Zhirov 31249 | -5/Zhirov | Learned location of Quarantine (-2) 31249 | -5/Zhirov | Learned location of Testing (-3) 31249 | -5/Zhirov | Learned location of Command (-1) 31259 | -5/Zhirov | Zhirov requested help retrieving the SGEMP Prototype 31283 | -5/Zhirov | Found Alien Artifact 31302 | -5/Zhirov | Found Alien Artifact 31302 | -5/Zhirov | Identified Integrated Reactor 31302 | -5/Zhirov | Installed Integrated Reactor, increased core energy generation (+10) 31475 | -5/Zhirov | Identified exit to Proximity Caves 31477 | -5/Zhirov | Entered Proximity Caves 31818 | -4/Proximity Caves | Entered Factory 31818 | -4/Factory | Evolved 2 slots: Utility x2 31819 | -4/Factory | Identified exit to Extension 31819 | -4/Factory | Identified exit to Armory 31822 | -4/Factory | Loaded intel: 28 terminal locations 31956 | -4/Factory | Spotted B-86 Titan 31994 | -4/Factory | Destroyed B-86 Titan 32032 | -4/Factory | Found Imp. Powered Armor 32037 | -4/Factory | Found Imp. Powered Armor 32041 | -4/Factory | Found Imp. Powered Armor 32055 | -4/Factory | Found Imp. Powered Armor 32058 | -4/Factory | Found Imp. Powered Armor 32253 | -4/Factory | Found Imp. Powered Armor 32456 | -4/Factory | Build established: Scavenger-Tank 32551 | -4/Factory | Discovered exit to Extension (range 13) 32818 | -4/Factory | First assault squad dispatched 32865 | -4/Factory | Entered Extension 32866 | -4/Extension | Identified exit to Research 32866 | -4/Extension | Identified exit to Cetus 34484 | -4/Extension | Disrupted transfer network 34624 | -4/Extension | Build established: Commander-Tank 34851 | -4/Extension | Spotted B-86 Titan 34860 | -4/Extension | Allies destroyed B-86 Titan 34873 | -4/Extension | Spotted B-86 Titan 34881 | -4/Extension | Allies destroyed B-86 Titan 34997 | -4/Extension | Lost 7 allies 35009 | -4/Extension | Rescued a captive Derelict 35009 | -4/Extension | Rescued a captive Derelict 35115 | -4/Extension | First assault squad dispatched 35278 | -4/Extension | Lost 7 allies 35285 | -4/Extension | Rescued A7 35408 | -4/Extension | Energy Cycler disabled 35506 | -4/Extension | Build established: Scavenger-Tank 35547 | -4/Extension | Entered Cetus 35547 | -4/Cetus | Accompanied by 6 allies (A7) 35552 | -4/Cetus | Acquired a Cetus Manufacturing Module code from A7 35569 | -4/Cetus | Spotted Cetus Guard 35574 | -4/Cetus | Destroyed Cetus Guard 35576 | -4/Cetus | Spotted Cetus Guard 35578 | -4/Cetus | Destroyed Cetus Guard 35581 | -4/Cetus | Destroyed Cetus Guard 35830 | -4/Cetus | Escorted A7 to Cetus Mainframe 35848 | -4/Cetus | Started Cetus Manufacturing Module 35873 | -4/Cetus | Manufactured an Enhanced Grunt 35885 | -4/Cetus | Discovered new exit (range 15) 35898 | -4/Cetus | Manufactured an Enhanced Grunt 35908 | -4/Cetus | Identified exit to Archives 35923 | -4/Cetus | Manufactured an Enhanced Grunt 35948 | -4/Cetus | Manufactured an Enhanced Grunt 35973 | -4/Cetus | Manufactured an Enhanced Grunt 36022 | -4/Cetus | Entered Archives 36022 | -4/Archives | Accompanied by 9 allies (A7) 36027 | -4/Archives | Received a hacking code to weaken MAIN.C 36064 | -4/Archives | Discovered new exit (range 15) 36084 | -4/Archives | Discovered exit to Research (range 15) 36226 | -4/Archives | Identified exit to Hub_04(d) 37650 | -4/Archives | Entered Hub_04(d) 37650 | -4/Hub_04(d) | Accompanied by 7 allies 37651 | -4/Hub_04(d) | Loaded intel: 14 trap records 37686 | -4/Hub_04(d) | Spotted B-86 Titan 37687 | -4/Hub_04(d) | Destroyed B-86 Titan 38058 | -4/Hub_04(d) | Learned Quarantine security intel 38167 | -4/Hub_04(d) | Learned Factory trap positions 38186 | -4/Hub_04(d) | Learned location of 1 exit from Research 38193 | -4/Hub_04(d) | Learned 4 Research zone layouts 38235 | -4/Hub_04(d) | Learned Quarantine trap positions 38269 | -4/Hub_04(d) | Learned Research stockpile data 38307 | -4/Hub_04(d) | Lost 3 allies 38312 | -4/Hub_04(d) | Learned 2 Upper Caves zone layouts 38365 | -4/Hub_04(d) | Build established: Scavenger-Skirmisher 38718 | -4/Hub_04(d) | Network Hub disabled 38777 | -4/Hub_04(d) | Network Hub disabled 38795 | -4/Hub_04(d) | Network Hub disabled 38944 | -4/Hub_04(d) | System corruption reached 10% 38951 | -4/Hub_04(d) | Core integrity fell below 50% 38958 | -4/Hub_04(d) | Spotted Lightning 38958 | -4/Hub_04(d) | Network Hub disabled 38958 | -4/Hub_04(d) | Spotted Lightning 38958 | -4/Hub_04(d) | Spotted Lightning 38961 | -4/Hub_04(d) | Entered Research 38961 | -3/Research | Evolved 2 slots: Utility x2 38962 | -3/Research | Identified exit to Testing 38966 | -3/Research | Loaded intel: 4 garrison access locations 38980 | -3/Research | Lost 11 parts (1p3n4u3w) 39317 | -3/Research | Build established: Scavenger-Mutant 39461 | -3/Research | First assault squad dispatched 39485 | -3/Research | Found Quantum Capacitor 39587 | -3/Research | Crushed by falling debris 39775 | -3/Research | Found Fusion Bomb Launcher 39778 | -3/Research | Found Fusion Bomb Launcher 39863 | -3/Research | Garrison activated, responded to threat 39886 | -3/Research | Build established: Scavenger-Gladiator 39922 | -3/Research | Lost 6 parts (1p1n2u2w) 39926 | -3/Research | Destroyed 18 combat bots 39943 | -3/Research | Found Fusion Bomb Launcher 39953 | -3/Research | Found Fusion Bomb Launcher 39955 | -3/Research | Found Fusion Bomb Launcher 39977 | -3/Research | Lost 4 parts (2n2u) 39978 | -3/Research | Incoming assault squad redirected 40013 | -3/Research | Garrison activated, responded to threat 40153 | -3/Research | Found Prototype Processor 40153 | -3/Research | Identified Spectral Analyzer 40230 | -3/Research | Build established: Gladiator 40389 | -3/Research | Incoming investigation squad redirected 40394 | -3/Research | Incoming investigation squad redirected 40484 | -3/Research | Incoming assault squad redirected 40886 | -3/Research | Entered Testing 41115 | -3/Testing | Found Prototype Energy Gun 41115 | -3/Testing | Identified Hyp. EM Gauss Rifle 41116 | -3/Testing | Assembled Modified EM Gauss 41160 | -3/Testing | Found Prototype Energy Cannon 41160 | -3/Testing | Identified Hpw. Disruptor Cannon 41200 | -3/Testing | Spotted PG-TBF3H2K3VC 41218 | -3/Testing | Rewired PG-TBF3H2K3VC 41276 | -3/Testing | Found Corrupted Prototype Launcher 41493 | -3/Testing | Found Prototype Launcher 41493 | -3/Testing | Identified Com. Tesla Bomb Launcher 41604 | -3/Testing | Found Prototype Launcher 41604 | -3/Testing | Identified Tactical Quantum Warhead 41650 | -3/Testing | Discovered new exit (range 21) 41691 | -3/Testing | Garrison activated, responded to threat 41697 | -3/Testing | Found Prototype Device 41697 | -3/Testing | Identified Exp. Thermal Shield 41722 | -3/Testing | Build established: Tank 41860 | -3/Testing | Scanned by Researcher 41965 | -3/Testing | Destroyed 9 combat bots 42110 | -3/Testing | Garrison activated, responded to threat 42136 | -3/Testing | First assault squad dispatched 42158 | -3/Testing | Incoming assault squad redirected 42281 | -3/Testing | Destroyed 7 combat bots 42435 | -3/Testing | Found Prototype Protection 42435 | -3/Testing | Identified Hvy. Regenerative Plating 42442 | -3/Testing | Found Prototype Protection 42442 | -3/Testing | Identified SHELL Armor 42568 | -3/Testing | High security lockdown imminent 42592 | -3/Testing | Garrison activated, responded to threat 42648 | -3/Testing | High security lockdown engaged 42714 | -3/Testing | Core integrity fell below 50% 42715 | -3/Testing | Lost 3 allies 42722 | -3/Testing | Destroyed 13 combat bots 42734 | -3/Testing | Lost 5 parts (1p1n1u2w) 42792 | -3/Testing | Entered Research 42792 | -2/Research | Evolved 2 slots: Power x1, Utility x1 43042 | -2/Research | First assault squad dispatched 43072 | -2/Research | Incoming assault squad redirected 43228 | -2/Research | Lost 3 parts (1n1u1w) 43359 | -2/Research | Lost 9 parts (2p3n1u3w) 43575 | -2/Research | High security lockdown imminent 43611 | -2/Research | Build established: Mutant 43646 | -2/Research | Destroyed 10 combat bots 43655 | -2/Research | High security lockdown engaged 43682 | -2/Research | Identified Transdimensional Reconstructor 43682 | -2/Research | Warped through subspace 43690 | -2/Research | Spotted B-90 Cyclops 43700 | -2/Research | Destroyed B-90 Cyclops 43706 | -2/Research | Found Quantum Capacitor 43712 | -2/Research | Lost 7 parts (1p1n2u3w) 43752 | -2/Research | Spotted Executioner 43761 | -2/Research | Garrison activated, responded to threat 43764 | -2/Research | Released all parts (11) 43777 | -2/Research | Core integrity fell below 50% 43794 | -2/Research | Lost 4 parts (3u1w) 43829 | -2/Research | Core integrity fell below 20% 43841 | -2/Research | Spotted Investigator 43859 | -2/Research | Destroyed by Q041-x with Gamma Bomb Array Last Messages --------------- 43857_ S-43 Plague stasis bubble strength at 146. 43857_ Broken Cld. Impulse Thruster destroyed. 43857_ S-43 Plague stasis bubble strength at 140. 43858_ S-43 Plague stasis bubble strength at 146. 43858_ S-43 Plague stasis bubble strength at 140. 43858_ S-43 Plague stasis bubble strength at 170. 43858_ M-36 Artificer repairs S-43 Plague. 43858_ S-43 Plague stasis bubble strength at 140. 43858_ Held in stasis. 43858_ Investigator is analyzing... 43858_ S-43 Plague stasis bubble strength at 134. 43859_ P-80 Master resets Investigator, system corruption cleaned. Map ----- +----------------------------------------------------+ | ?????????????????????????????????????????????????? | | ?????????????????????????????????????????????????? | | ?????????????????????????????????????????????????? | | ?????????????????????????????????????????????????? | | ?????????????????????????????????????????????????? | | ?????????????????????????????????????????????????? | | ?????????????????????????????????? ????????????? | | ?????????????????????????????????? " ??????????? | | ??????????????????????????????????"%" #?????????? | | ?????????????????????????????????? " #?????????? | | ?????????????????????????????????? #?????????? | | ?????????????????????????????????? #?????????? | | ?????????????????????????????????? #?????????? | | ?????????????????????????????????# #?????????? | | ?????????????????????????????????# #?????????? | | ??######???????????????????????? # #?????????? | | ?? ???????????????????????? + #?????????? | | ? ???????????????????????" # #?????????? | | ? """ ?????????????????????"" # #?????????? | | """ ? ??????????????????? ?# #?????????? | | """ #???????????????gg ??# #?????????? | | #?????????######g##### #?????????? | | """????????????# cgsm # #?????????? | | """ """????????????## sss # #?????????? | | ? """ F"???########### """" # #?????????? | | ? """ ""???# # @""""" / #?????????? | | ?? ???????# # """" # #?????????? | | ?? ??????# = ]# """" # #?????????? | | #######??????# #Q =# #?????????? | | !#???????# p s # #?????????? | | #???????#!* #g # ###### #?????????? | | """ #######?#!! #### #??# #?????????? | | """ / #??! ## # #??# #?????????? | | """ # ^ #???# ## ##### #### #?????????? | | # #???# #?????????? | | / #??## % #?????????? | | """ ##### #?## = [ #?????????? | | """ #???# ### # % #?????????? | | """ #???# [ #?????????? | | #???##### # ##############?????????? | | #??????# ### # # #?????????????????????? | | ## ###?????## ## #### ###??????????#####??????? | | ##????# # # ##????###?????# #??????? | | ###### # # #???### ####### #??????? | | # [ ###### !! = # #??????? | | !# # !! # #??????? | | # # """ " !! # = #??????? | | """ # | # # ######## | | # """ % ## + % # ## | | % %! % # ##+### | +----------------------------------------------------+ Best States ------------- Heat Dissipation 84 Coolant Potential 65 Energy Generation 55 Energy Capacity 1200 Matter Stores 550 Matter Capacity 800 Sight Range 24 Robot Scan Range 16 Terrain Scan Range 20 Terrain Scan Density 10 Jamming Range 14 Corruption Containment 8 Corruption Block 22 Armor Coverage 2100 Weapon Shielding 90 Phase Shifting 10 Evasion (%) 64 Melee Accuracy 5 Core Analysis 6 Recoil Reduction 7 Offensive Hacking 14 Authchip Count 1 Item Schematics ----------------- Combat Drone Bay | -6/Data Miner | Free Lgt. Regenerative Plating | -6/Data Miner | Free Cld. Nuclear Pulse Thruster | -6/Data Miner | Free Prc. Matter Filter | -6/Data Miner | Free Plasma Sword | -6/Data Miner | Free Adv. Medium Treads | -6/Data Miner | Free Lrn. Sensor Array | -6/Data Miner | Free Matter Neutralizer | -6/Data Miner | Free Assault Drone Bay | -5/Zhirov | Free Exp. Heat Sink | -5/Zhirov | Free Exp. Optical Array | -5/Zhirov | Free Imp. Arc Thrower | -5/Zhirov | Free Thermal Defense Suite | -3/Testing | Archive Hellfire Missile Launcher | -3/Testing | Archive Hvy. Hardcell Cannon | -3/Testing | Archive Imp. Energy Well | -3/Testing | Archive Enh. Biometal Leg | -3/Testing | Archive Robot Schematics ------------------ I-36 Angel | -6/Data Miner | Free R-10 Processor | -6/Data Miner | Free Y-54 Guardian | -6/Data Miner | Free A-15 Conveyor | -6/Data Miner | Free G-67 Veteran | -6/Data Miner | Free M-36 Artificer | -6/Data Miner | Free G-50 Soldier | -6/Data Miner | Free Fabricated ------------ Adv. Remote Force Field | x1 | -6/Factory | Preloaded Repaired ---------- Hcp. Storage Unit | 31% | -10/Materials Imp. Treads | 31% | -8/Materials Hrd. Medium Armor Plating | 8% | -7/Factory Gauss Rifle | 11% | -7/Factory Lrn. Missile Launcher | 36% | -5/Factory Studied --------- Missile Launcher | -8/Materials | Hacked Shock Bomb Launcher | -8/Materials | Hacked Imp. Grenade Launcher | -6/Factory | Hacked Lrn. Missile Launcher | -6/Factory | Hacked Phase Cannon | -6/Factory | Hacked Hvy. Machine Gun | -6/Factory | Hacked Flak Gun | -6/Factory | Hacked Alien Tech Used ----------------- Core Expander Integrated Reactor Transdimensional Reconstructor Achievements -------------- 404 Disruptive Presence Error 47 Physics Hates This One Trick Satisfying Challenges ------------ None Game ------ Seed PitchforkEnergyChainsword Manual? 0 Play Time 05:34:33 Cumulative 465.1 hours Start 2026.03.14 @ 23:41:34 End 2026.03.15 @ 05:17:49 Sessions 3 Manual Loads 0 Difficulty Rogue Special Mode None Game No. 358 Rogue 358 Adventurer 0 Explorer 0 Win Type - Total 7 Types 5/0/0/0/0/0/0/2/0/0 Lore% 72 Gallery% 71 Achievement% 59 Wizard Run 0 Options --------- Layout 1 ASCII 0 Keyboard 0 Movement Mouse Keybinds 0 Fullscreen 1 Font 32/SmallcapsGlow Map View 50x35 Zoom Use 0% Tactical HUD 1 Map Filters NONE Filters NONE Steam 1 RUN: d693b219-8d0c-4245-9853-01c0f73cd3b8